fUST/lending_fUST_20241205
["ID","MTS","AMOUNT","RATE_DAILY","PERIOD"]
[344347224,1733361043811,-213.2007628,0.00025973,2]
[344347226,1733361043820,-153.0,0.00025973,2]
[344347228,1733361043830,-153.0,0.00025973,2]
[344347230,1733361043838,-620.63693432,0.00025996,2]
[344347232,1733361043848,-524.43,0.00026006,2]
[344347234,1733361043858,-500.0,0.00026006,2]
[344347235,1733361043867,-591.66,0.00026006,2]
[344347237,1733361043877,-500.0,0.00026006,2]
[344347239,1733361043887,-763.09535748,0.0002601,2]
[344347241,1733361043897,-500.0,0.00026068,2]
[344347243,1733361043906,-536.16,0.00026068,2]
[344347245,1733361043917,-500.0,0.00026068,2]
[344347247,1733361043927,-597.81,0.00026068,2]
[344347249,1733361043936,-500.0,0.00026068,2]
[344347250,1733361043946,-5908.83,0.00026068,2]
[344347252,1733361043955,-686.73,0.00026068,2]
[344347254,1733361043965,-500.0,0.00026068,2]
[344347256,1733361043974,-500.0,0.00026068,2]
[344347257,1733361043987,-1231.87,0.00026068,2]
[344347258,1733361043996,-1272.12,0.00026068,2]
[344347259,1733361044006,-591.25813408,0.00026068,2]
[344347260,1733361044015,-500.0,0.00026068,2]
[344347261,1733361044024,-1564.66,0.00026068,2]
[344347262,1733361044033,-500.0,0.00026068,2]
[344347263,1733361044043,-555.99,0.00026068,2]
[344347264,1733361044053,-842.69,0.00026068,2]
[344347265,1733361044063,-500.0,0.00026068,2]
[344347266,1733361044073,-2608.19,0.00026068,2]
[344347267,1733361044082,-500.0,0.00026068,2]
[344347268,1733361044092,-710.19,0.00026068,2]
[344347269,1733361044101,-500.0,0.00026068,2]
[344347270,1733361044111,-722.5,0.00026068,2]
[344347271,1733361044120,-153.0,0.0002611,2]
[344347272,1733361044130,-306.0,0.0002611,2]
[344347273,1733361044139,-306.0,0.0002611,2]
[344347274,1733361044149,-680.62441025,0.00026164,2]
[344347275,1733361044159,-503.16986874,0.00026164,2]
[344347276,1733361044168,-500.0,0.00026164,2]
[344347277,1733361044181,-150.0,0.00026166,2]
[344347278,1733361044191,-150.0,0.00026166,2]
[344347279,1733361044201,-250.489,0.00026166,2]
[344347281,1733361044211,-248.522,0.00026166,2]
[344347283,1733361044220,-532.0,0.00026166,2]
[344347284,1733361044230,-2375.0,0.00026166,2]
[344347286,1733361044247,-2170.0,0.00026166,2]
[344347288,1733361044256,-355.706067,0.000262,7]
[344347290,1733361044266,-355.706067,0.000262,7]
[344347292,1733361044276,-151.0,0.000262,7]
[344347293,1733361044286,-151.0,0.000262,7]
[344347294,1733361044297,-666.0,0.00026201,2]
[344347296,1733361044307,-502.711171,0.00026248,2]
[344347298,1733361044316,-151.0,0.00026269,7]
[344347300,1733361044326,-854.75693,0.00026269,7]
[344347302,1733361044335,-854.75693,0.00026269,7]
[344347304,1733361044345,-151.0,0.00026269,7]
[344347306,1733361044355,-151.0,0.00026269,7]
[344347308,1733361044365,-151.0,0.00026269,7]
[344347310,1733361044375,-524.43,0.0002628,2]
[344347312,1733361044384,-500.0,0.0002628,2]
[344347314,1733361044393,-591.66,0.0002628,2]
[344347316,1733361044403,-500.0,0.0002628,2]
[344347318,1733361044412,-500.0,0.00026285,2]
[344347320,1733361044422,-500.0,0.00026342,2]
[344347322,1733361044431,-536.16,0.00026342,2]
[344347325,1733361044441,-500.0,0.00026342,2]
[344347326,1733361044451,-597.81,0.00026342,2]
[344347329,1733361044461,-573.60155743,0.00026342,2]
[344347330,1733361044471,-5908.83,0.00026342,2]
[344347332,1733361044480,-686.73,0.00026342,2]
[344347334,1733361044495,-500.0,0.00026342,2]
[344347335,1733361044504,-500.0,0.00026342,2]
[344347336,1733361044514,-1231.87,0.00026342,2]
[344347337,1733361044524,-1272.12,0.00026342,2]
[344347338,1733361044533,-500.0,0.00026342,2]
[344347339,1733361044543,-1564.66,0.00026342,2]
[344347340,1733361044552,-500.0,0.00026342,2]
[344347341,1733361044562,-555.99,0.00026342,2]
[344347342,1733361044571,-842.69,0.00026342,2]
[344347343,1733361044581,-500.0,0.00026342,2]
[344347344,1733361044591,-2608.19,0.00026342,2]
[344347345,1733361044601,-500.0,0.00026342,2]
[344347346,1733361044610,-710.19,0.00026342,2]
[344347347,1733361044620,-276.14403706,0.00026342,2]
[344347348,1733361044629,-722.5,0.00026342,2]
[344347349,1733361044639,-659.5279123,0.00026384,2]
[344347350,1733361044649,-151.0,0.00026475,7]
[344347351,1733361044658,-151.0,0.00026475,7]
[344347352,1733361044668,-331.107855,0.00026475,7]
[344347353,1733361044677,-151.0,0.00026475,7]
[344347354,1733361044687,-331.107855,0.00026475,7]
[344347355,1733361044696,-151.0,0.00026475,7]
[344347356,1733361044706,-260.052975,0.00026475,7]
[344347357,1733361044716,-260.052975,0.00026475,7]
[344347358,1733361044726,-160.845121,0.00026475,7]
[344347359,1733361044737,-160.845121,0.00026475,7]
[344347360,1733361044747,-203.353108,0.00026475,7]
[344347361,1733361044757,-203.353108,0.00026475,7]
[344347362,1733361044767,-33333.0,0.00026475,2]
[344347363,1733361044777,-524.43,0.00026554,2]
[344347364,1733361044787,-500.0,0.00026554,2]
[344347365,1733361044797,-591.66,0.00026554,2]
[344347366,1733361044806,-500.0,0.00026554,2]
[344347367,1733361044816,-155.0000163,0.00026567,2]
[344347368,1733361044826,-156636.226811,0.0002658,2]
[344347369,1733361044835,-214975.42092965,0.0002658,2]
[344347370,1733361044853,-4157.22380973,0.0002658,2]
[344347379,1733361044983,-563.36982703,0.00022232,2]
[344347380,1733361044995,-500.0,0.00022233,2]
[344347382,1733361045006,-216.63017297,0.0002658,2]
[344347385,1733361045023,-500.0,0.00022507,2]
[344347386,1733361045033,-135898.3217786,0.0002658,2]
[344347388,1733361045042,-763.09535748,0.00026599,2]
[344347390,1733361045053,-500.0,0.00026616,2]
[344347392,1733361045063,-536.16,0.00026616,2]
[344347394,1733361045074,-500.0,0.00026616,2]
[344347396,1733361045085,-597.81,0.00026616,2]
[344347398,1733361045094,-5908.83,0.00026616,2]
[344347400,1733361045104,-686.73,0.00026616,2]
[344347402,1733361045114,-500.0,0.00026616,2]
[344347404,1733361045124,-500.0,0.00026616,2]
[344347406,1733361045134,-1231.87,0.00026616,2]
[344347408,1733361045144,-1272.12,0.00026616,2]
[344347410,1733361045154,-500.0,0.00026616,2]
[344347411,1733361045165,-1564.66,0.00026616,2]
[344347414,1733361045180,-500.0,0.00026616,2]
[344347415,1733361045190,-555.99,0.00026616,2]
[344347416,1733361045200,-842.69,0.00026616,2]
[344347418,1733361045211,-500.0,0.00026616,2]
[344347419,1733361045221,-2608.19,0.00026616,2]
[344347423,1733361045350,-500.0,0.00026616,2]
[344347425,1733361045361,-710.19,0.00026616,2]
[344347427,1733361045370,-722.5,0.00026616,2]
[344347429,1733361045380,-457.9023924,0.00026795,2]
[344347431,1733361045390,-7911.76,0.000268,2]
[344347433,1733361045400,-500.0,0.00026828,2]
[344347435,1733361045410,-591.66,0.00026828,2]
[344347437,1733361045419,-500.0,0.00026828,2]
[344347439,1733361045432,-783.9150284,0.00026833,2]
[344347440,1733361045441,-582.47352521,0.0002689,2]
[344347441,1733361045451,-536.16,0.0002689,2]
[344347443,1733361045461,-500.0,0.0002689,2]
[344347445,1733361045472,-597.81,0.0002689,2]
[344347447,1733361045482,-5908.83,0.0002689,2]
[344347449,1733361045495,-686.73,0.0002689,2]
[344347451,1733361045504,-500.0,0.0002689,2]
[344347453,1733361045513,-500.0,0.0002689,2]
[344347455,1733361045523,-1231.87,0.0002689,2]
[344347457,1733361045533,-1272.12,0.0002689,2]
[344347459,1733361045542,-500.0,0.0002689,2]
[344347461,1733361045552,-1564.66,0.0002689,2]
[344347463,1733361045563,-500.0,0.0002689,2]
[344347465,1733361045572,-555.99,0.0002689,2]
[344347467,1733361045582,-842.69,0.0002689,2]
[344347469,1733361045591,-500.0,0.0002689,2]
[344347471,1733361045601,-2608.19,0.0002689,2]
[344347473,1733361045610,-500.0,0.0002689,2]
[344347475,1733361045621,-710.19,0.0002689,2]
[344347477,1733361045631,-722.5,0.0002689,2]
[344347479,1733361045641,-300.0,0.00027,7]
[344347481,1733361045651,-300.0,0.00027,14]
[344347483,1733361045660,-300.0,0.00027,7]
[344347485,1733361045669,-535.97487,0.00027,2]
[344347487,1733361045679,-500.0,0.00027,10]
[344347489,1733361045688,-257.0,0.00027,2]
[344347491,1733361045697,-500.0,0.00027,10]
[344347493,1733361045707,-600.0,0.0002709,2]
[344347495,1733361045716,-154.081269,0.00027092,7]
[344347497,1733361045728,-500.0,0.00027102,2]
[344347499,1733361045740,-355.706067,0.00027102,7]
[344347501,1733361045749,-591.66,0.00027102,2]
[344347503,1733361045759,-355.706067,0.00027102,7]
[344347505,1733361045770,-500.0,0.00027102,2]
[344347507,1733361045779,-151.0,0.00027102,7]
[344347509,1733361045789,-151.0,0.00027102,7]
[344347511,1733361045799,-217.0,0.0002711,20]
[344347513,1733361045808,-854.75693,0.00027123,7]
[344347515,1733361045818,-854.75693,0.00027123,7]
[344347516,1733361045827,-151.0,0.00027123,7]
[344347518,1733361045836,-536.16,0.00027164,2]
[344347520,1733361045847,-500.0,0.00027164,2]
[344347522,1733361045860,-597.81,0.00027164,2]
[344347524,1733361045871,-5908.83,0.00027164,2]
[344347526,1733361045883,-686.73,0.00027164,2]
[344347528,1733361045894,-171.48457439,0.00027164,2]
[344347531,1733361045904,-374.64306817,0.00027164,2]
[344347533,1733361045916,-1231.87,0.00027164,2]
[344347535,1733361045926,-1272.12,0.00027164,2]
[344347537,1733361045935,-500.0,0.00027164,2]
[344347538,1733361045945,-1564.66,0.00027164,2]
[344347540,1733361045955,-500.0,0.00027164,2]
[344347542,1733361045967,-555.99,0.00027164,2]
[344347544,1733361045978,-151.0,0.00027164,7]
[344347546,1733361045990,-842.69,0.00027164,2]
[344347548,1733361046000,-500.0,0.00027164,2]
[344347550,1733361046010,-151.0,0.00027164,7]
[344347552,1733361046020,-2608.19,0.00027164,2]
[344347554,1733361046030,-500.0,0.00027164,2]
[344347556,1733361046039,-710.19,0.00027164,2]
[344347558,1733361046049,-722.5,0.00027164,2]
[344347560,1733361046059,-763.09535748,0.00027189,2]
[344347562,1733361046068,-151.0,0.00027296,7]
[344347564,1733361046079,-600.0,0.00027372,2]
[344347566,1733361046088,-500.0,0.00027376,2]
[344347568,1733361046097,-591.66,0.00027376,2]
[344347570,1733361046107,-500.0,0.00027376,2]
[344347572,1733361046116,-500.0,0.00027397,2]
[344347574,1733361046125,-151.0,0.00027397,7]
[344347576,1733361046134,-151.0,0.00027397,7]
[344347578,1733361046145,-536.16,0.00027438,2]
[344347580,1733361046154,-364.23711209,0.00027438,2]
[344347582,1733361046166,-597.81,0.00027438,2]
[344347584,1733361046176,-5908.83,0.00027438,2]
[344347586,1733361046186,-686.73,0.00027438,2]
[344347588,1733361046196,-1231.87,0.00027438,2]
[344347590,1733361046207,-1272.12,0.00027438,2]
[344347592,1733361046217,-500.0,0.00027438,2]
[344347594,1733361046226,-1564.66,0.00027438,2]
[344347596,1733361046239,-289.58053564,0.00027438,2]
[344347598,1733361046249,-555.99,0.00027438,2]
[344347600,1733361046260,-842.69,0.00027438,2]
[344347602,1733361046270,-500.0,0.00027438,2]
[344347604,1733361046280,-2608.19,0.00027438,2]
[344347606,1733361046290,-327.99558017,0.00027438,2]
[344347607,1733361046299,-710.19,0.00027438,2]
[344347610,1733361046309,-722.5,0.00027438,2]
[344347611,1733361046321,-823.0,0.00027444,2]
[344347613,1733361046330,-181.01608879,0.00027499,10]
[344347616,1733361046340,-2654.33,0.000275,2]
[344347618,1733361046350,-314.093243,0.000275,13]
[344347620,1733361046359,-427.0714483,0.00027534,30]
[344347622,1733361046369,-839.39,0.000276,30]
[344347624,1733361046378,-151.0,0.0002765,7]
[344347625,1733361046387,-151.0,0.0002765,7]
[344347627,1733361046397,-500.0,0.0002765,2]
[344347629,1733361046406,-331.107855,0.0002765,7]
[344347631,1733361046416,-151.0,0.0002765,7]
[344347633,1733361046425,-331.107855,0.0002765,7]
[344347635,1733361046435,-151.0,0.0002765,7]
[344347637,1733361046444,-260.052975,0.0002765,7]
[344347639,1733361046454,-260.052975,0.0002765,7]
[344347641,1733361046464,-591.66,0.0002765,2]
[344347643,1733361046474,-500.0,0.0002765,2]
[344347645,1733361046484,-160.845121,0.0002765,7]
[344347647,1733361046499,-160.845121,0.0002765,7]
[344347649,1733361046509,-257.0,0.00027671,2]
[344347651,1733361046518,-536.16,0.00027712,2]
[344347653,1733361046528,-597.81,0.00027712,2]
[344347655,1733361046537,-203.353108,0.00027712,7]
[344347657,1733361046547,-203.353108,0.00027712,7]
[344347659,1733361046557,-5908.83,0.00027712,2]
[344347661,1733361046566,-686.73,0.00027712,2]
[344347663,1733361046576,-1231.87,0.00027712,2]
[344347666,1733361046586,-1272.12,0.00027712,2]
[344347668,1733361046601,-500.0,0.00027712,2]
[344347671,1733361046616,-1564.66,0.00027712,2]
[344347673,1733361046632,-555.99,0.00027712,2]
[344347675,1733361046647,-842.69,0.00027712,2]
[344347678,1733361046660,-500.0,0.00027712,2]
[344347680,1733361046672,-2608.19,0.00027712,2]
[344347682,1733361046686,-710.19,0.00027712,2]
[344347683,1733361046699,-722.5,0.00027712,2]
[344347684,1733361046711,-763.09535748,0.00027778,2]
[344347685,1733361046725,-155.00000081,0.00027896,2]
[344347686,1733361046741,-400.87394334,0.00027924,2]
[344347687,1733361046754,-591.66,0.00027924,2]
[344347689,1733361046767,-588.17493728,0.00027924,2]
[344347692,1733361046779,-536.16,0.00027986,2]
[344347694,1733361046793,-597.81,0.00027986,2]
[344347696,1733361046806,-5908.83,0.00027986,2]
[344347699,1733361046820,-686.73,0.00027986,2]
[344347701,1733361046833,-1231.87,0.00027986,2]
[344347703,1733361046845,-1272.12,0.00027986,2]
[344347706,1733361046857,-603.56918995,0.00027986,2]
[344347708,1733361046868,-1564.66,0.00027986,2]
[344347710,1733361046882,-555.99,0.00027986,2]
[344347713,1733361046895,-842.69,0.00027986,2]
[344347715,1733361046908,-627.03228882,0.00027986,2]
[344347717,1733361046920,-2608.19,0.00027986,2]
[344347720,1733361046932,-710.19,0.00027986,2]
[344347722,1733361046942,-722.5,0.00027986,2]
[344347724,1733361046953,-300.0,0.00028,20]
[344347726,1733361046966,-205.468,0.00028,30]
[344347728,1733361046979,-155.784346,0.000281,18]
[344347731,1733361046996,-591.66,0.00028198,2]
[344347733,1733361047010,-402.2,0.000282,2]
[344347735,1733361047022,-300.0,0.000282,14]
[344347738,1733361047035,-300.0,0.000282,30]
[344347740,1733361047048,-198.798247,0.000282,2]
[344347742,1733361047062,-150.01,0.00028212,2]
[344347745,1733361047075,-1248.77540685,0.00028212,2]
[344347747,1733361047089,-151.0,0.00028219,7]
[344347749,1733361047102,-151.0,0.00028219,7]
[344347752,1733361047116,-536.16,0.0002826,2]
[344347754,1733361047127,-597.81,0.0002826,2]
[344347756,1733361047138,-5908.83,0.0002826,2]
[344347758,1733361047148,-686.73,0.0002826,2]
[344347760,1733361047158,-1231.87,0.0002826,2]
[344347762,1733361047173,-1272.12,0.0002826,2]
[344347765,1733361047186,-1564.66,0.0002826,2]
[344347767,1733361047201,-555.99,0.0002826,2]
[344347770,1733361047215,-842.69,0.0002826,2]
[344347772,1733361047227,-2608.19,0.0002826,2]
[344347774,1733361047241,-710.19,0.0002826,2]
[344347776,1733361047255,-722.5,0.0002826,2]
[344347778,1733361047267,-3200.0,0.0002833,2]
[344347781,1733361047279,-500.0,0.0002833,2]
[344347783,1733361047292,-150.0,0.0002833,2]
[344347785,1733361047304,-328.3776297,0.00028356,30]
[344347787,1733361047315,-763.09535748,0.00028368,2]
[344347790,1733361047326,-7911.76,0.000284,2]
[344347792,1733361047337,-205.456,0.000284,60]
[344347794,1733361047349,-823.0,0.00028409,2]
[344347796,1733361047360,-1010.43285525,0.00028452,3]
[344347798,1733361047370,-355.706067,0.00028461,7]
[344347801,1733361047382,-355.706067,0.00028461,7]
[344347803,1733361047394,-151.0,0.00028461,7]
[344347805,1733361047405,-151.0,0.00028472,7]
[344347807,1733361047416,-854.75693,0.00028472,7]
[344347809,1733361047428,-854.75693,0.00028472,7]
[344347812,1733361047439,-591.66,0.00028472,2]
[344347814,1733361047451,-151.0,0.00028472,7]
[344347816,1733361047462,-500.0,0.00028493,7]
[344347818,1733361047473,-500.0,0.00028493,7]
[344347821,1733361047484,-150.17,0.00028493,2]
[344347823,1733361047502,-500.0,0.00028493,7]
[344347825,1733361047514,-500.0,0.00028493,7]
[344347827,1733361047525,-500.0,0.00028493,7]
[344347830,1733361047537,-1231.91545911,0.00028533,2]
[344347832,1733361047548,-1564.81296549,0.00028533,2]
[344347834,1733361047560,-842.69116778,0.00028533,2]
[344347836,1733361047571,-536.33529995,0.00028534,2]
[344347839,1733361047584,-597.90176639,0.00028534,2]
[344347841,1733361047596,-5908.9616659,0.00028534,2]
[344347843,1733361047609,-686.84217229,0.00028534,2]
[344347845,1733361047621,-1272.31782556,0.00028534,2]
[344347848,1733361047633,-556.2129669,0.00028534,2]
[344347850,1733361047646,-2608.32200243,0.00028534,2]
[344347852,1733361047658,-710.34184399,0.00028534,2]
[344347854,1733361047669,-722.55631167,0.00028534,2]
[344347857,1733361047680,-676.886598,0.00028568,15]
[344347859,1733361047691,-878.06500689,0.0002857,2]
[344347861,1733361047703,-151.0,0.000286,17]
[344347863,1733361047714,-151.0,0.00028631,2]
[344347866,1733361047727,-151.0,0.00028657,6]
[344347868,1733361047738,-151.0,0.00028735,7]
[344347870,1733361047751,-151.0,0.00028735,7]
[344347872,1733361047760,-591.66,0.00028746,2]
[344347874,1733361047769,-500.0,0.00028767,7]
[344347876,1733361047779,-705.20027034,0.00028767,7]
[344347878,1733361047789,-705.16273179,0.00028767,7]
[344347880,1733361047798,-500.0,0.00028767,7]
[344347882,1733361047808,-500.0,0.00028767,7]
[344347884,1733361047818,-500.0,0.00028767,4]
[344347886,1733361047828,-257.0,0.00028767,2]
[344347888,1733361047838,-164.90621201,0.000288,7]
[344347890,1733361047847,-205.468,0.0002884,120]
[344347892,1733361047857,-15000.0,0.000289,20]
[344347894,1733361047866,-151.0,0.000289,7]
[344347896,1733361047877,-151.0,0.000289,7]
[344347898,1733361047886,-331.107855,0.000289,7]
[344347900,1733361047895,-151.0,0.000289,7]
[344347902,1733361047905,-331.107855,0.000289,7]
[344347904,1733361047915,-260.052975,0.000289,7]
[344347906,1733361047924,-260.052975,0.000289,7]
[344347908,1733361047934,-160.845121,0.000289,7]
[344347910,1733361047943,-160.845121,0.000289,7]
[344347912,1733361047953,-763.09535748,0.00028957,2]
[344347914,1733361047962,-5000.0,0.00029,2]
[344347916,1733361047972,-141794.90076451,0.00029,7]
[344347918,1733361047981,-1000.0,0.00029,29]
[344347920,1733361047993,-607.18737514,0.00029,7]
[344347922,1733361048003,-385.67896949,0.00029,45]
[344347924,1733361048013,-47766.0,0.00029,2]
[344347926,1733361048022,-3712.09,0.00029,10]
[344347944,1733361048205,-153.94276,0.00029,7]
[344347946,1733361048217,-151.0,0.00029,7]
[344347948,1733361048227,-151.0,0.00029,7]
[344347950,1733361048237,-151.0,0.00029,7]
[344347952,1733361048251,-297.098287,0.00029,7]
[344347953,1733361048261,-331.107855,0.00029,7]
[344347955,1733361048271,-151.0,0.00029,7]
[344347957,1733361048281,-331.107855,0.00029,7]
[344347959,1733361048291,-151.0,0.00029,7]
[344347961,1733361048301,-260.052975,0.00029,7]
[344347963,1733361048311,-260.052975,0.00029,7]
[344347964,1733361048320,-854.75693,0.00029,7]
[344347966,1733361048330,-854.75693,0.00029,7]
[344347968,1733361048340,-355.706067,0.00029,7]
[344347970,1733361048350,-355.706067,0.00029,7]
[344347972,1733361048359,-160.845121,0.00029,7]
[344347974,1733361048369,-151.0,0.00029,7]
[344347976,1733361048379,-160.845121,0.00029,7]
[344347978,1733361048388,-203.353108,0.00029,7]
[344347980,1733361048397,-203.353108,0.00029,7]
[344347982,1733361048407,-151.0,0.00029,7]
[344347984,1733361048416,-591.66,0.0002902,2]
[344347986,1733361048426,-376.0,0.0002903,26]
[344347988,1733361048436,-781.54499802,0.00029041,7]
[344347990,1733361048446,-998.94361986,0.00029041,7]
[344347992,1733361048455,-500.0,0.00029041,7]
[344347994,1733361048464,-172.19257,0.00029073,2]
[344347996,1733361048474,-172.095179,0.00029073,2]
[344347998,1733361048485,-800.0,0.000291,2]
[344348000,1733361048499,-151.0,0.000291,18]
[344348002,1733361048509,-500.0,0.00029113,2]
[344348004,1733361048518,-151.0,0.00029154,7]
[344348006,1733361048528,-150.0,0.00029166,2]
[344348008,1733361048537,-150.0,0.00029166,2]
[344348010,1733361048547,-532.0,0.00029166,2]
[344348012,1733361048556,-2375.0,0.00029166,2]
[344348013,1733361048565,-2170.0,0.00029166,2]
[344348015,1733361048575,-155.1131882,0.00029178,30]
[344348017,1733361048584,-153.0,0.00029233,30]
[344348019,1733361048593,-308.2581861,0.00029233,30]
[344348020,1733361048603,-413.2185017,0.00029233,30]
[344348022,1733361048612,-153.0,0.00029233,30]
[344348025,1733361048622,-213.2007628,0.00029233,30]
[344348026,1733361048632,-213.2007628,0.00029233,30]
[344348028,1733361048642,-153.0,0.00029233,30]
[344348030,1733361048652,-213.2007628,0.00029233,30]
[344348032,1733361048661,-78.682905,0.0002929,120]
[344348034,1733361048671,-155.00000004,0.00029291,2]
[344348036,1733361048680,-591.72421341,0.00029294,2]
[344348038,1733361048690,-3246.11,0.000293,30]
[344348040,1733361048700,-839.39,0.000293,30]
[344348042,1733361048710,-500.0,0.00029315,7]
[344348044,1733361048720,-1168.40592398,0.00029412,2]
[344348046,1733361048730,-763.09535748,0.00029547,2]
[344348048,1733361048742,-500.0,0.00029589,7]
[344348050,1733361048755,-151.0,0.00029652,7]
[344348052,1733361048768,-151.0,0.00029654,7]
[344348054,1733361048778,-151.421281,0.00029654,7]
[344348056,1733361048788,-1152.0,0.00029842,2]
[344348058,1733361048797,-805.75348845,0.00029863,7]
[344348059,1733361048807,-151.0,0.00029863,7]
[344348062,1733361048817,-3710.49871056,0.00029878,3]
[344348063,1733361048826,-151.0,0.00029878,7]
[344348065,1733361048836,-331.107855,0.00029878,7]
[344348067,1733361048846,-151.0,0.00029878,7]
[344348069,1733361048856,-331.107855,0.00029878,7]
[344348071,1733361048866,-260.052975,0.00029878,7]
[344348073,1733361048875,-260.052975,0.00029878,7]
[344348075,1733361048885,-160.845121,0.00029878,7]
[344348078,1733361048901,-160.845121,0.00029878,7]
[344348079,1733361048911,-10000.0,0.000299,20]
[344348081,1733361048920,-1506.05382351,0.000299,5]
[344348083,1733361048930,-854.75693,0.000299,7]
[344348085,1733361048940,-854.75693,0.000299,7]
[344348087,1733361048949,-355.706067,0.000299,7]
[344348089,1733361048962,-355.706067,0.000299,7]
[344348091,1733361048972,-151.0,0.000299,7]
[344348093,1733361048982,-195.45810534,0.0003,30]
[344348095,1733361048992,-10789.81732254,0.0003,3]
[344348097,1733361049002,-150.0,0.0003,10]
[344348098,1733361049013,-6127.12891077,0.0003,15]
[344348099,1733361049023,-39377.83044831,0.0003,2]
[344348100,1733361049033,-151.0,0.0003,120]
[344348101,1733361049044,-12334.0,0.0003,20]
[344348102,1733361049053,-12332.0,0.0003,20]
[344348103,1733361049063,-12332.0,0.0003,20]
[344348104,1733361049073,-12332.0,0.0003,20]
[344348105,1733361049083,-12332.0,0.0003,20]
[344348106,1733361049093,-12332.0,0.0003,20]
[344348107,1733361049102,-189.276,0.0003,2]
[344348108,1733361049113,-6184.1627286,0.0003,7]
[344348109,1733361049122,-5000.0,0.0003,20]
[344348110,1733361049132,-4000.0,0.0003,10]
[344348111,1733361049141,-20294.17260897,0.0003,30]
[344348112,1733361049151,-151.0,0.0003,7]
[344348113,1733361049162,-1000.0,0.0003,28]
[344348114,1733361049174,-1000.0,0.0003,28]
[344348115,1733361049183,-1000.0,0.0003,28]
[344348116,1733361049193,-493.57807,0.0003,28]
[344348117,1733361049203,-151.0,0.0003,7]
[344348118,1733361049212,-331.107855,0.0003,7]
[344348119,1733361049222,-165.710753,0.0003,7]
[344348120,1733361049232,-331.107855,0.0003,7]
[344348121,1733361049245,-447.37,0.0003,31]
[344348122,1733361049255,-447.37,0.0003,31]
[344348123,1733361049264,-447.37,0.0003,31]
[344348124,1733361049274,-447.37,0.0003,31]
[344348125,1733361049284,-447.37,0.0003,31]
[344348126,1733361049294,-447.37,0.0003,31]
[344348127,1733361049304,-447.37,0.0003,31]
[344348128,1733361049315,-447.37,0.0003,31]
[344348129,1733361049324,-447.37,0.0003,31]
[344348130,1733361049334,-447.37,0.0003,31]
[344348131,1733361049343,-447.37,0.0003,31]
[344348132,1733361049353,-447.37,0.0003,31]
[344348133,1733361049362,-151.0,0.0003,7]
[344348134,1733361049372,-260.052975,0.0003,7]
[344348135,1733361049382,-260.052975,0.0003,7]
[344348136,1733361049391,-854.75693,0.0003,7]
[344348137,1733361049401,-854.75693,0.0003,7]
[344348138,1733361049410,-355.706067,0.0003,7]
[344348139,1733361049420,-7911.76,0.0003,2]
[344348140,1733361049429,-355.706067,0.0003,7]
[344348141,1733361049438,-160.845121,0.0003,7]
[344348142,1733361049447,-151.0,0.0003,7]
[344348143,1733361049456,-160.845121,0.0003,7]